bitfinex/quotes_SOLUSD_20230116
["timestamp","ask_amount","ask_price","bid_price","bid_amount"]
[1673903226318,20.0,23.568,23.56,24.59]
[1673903227032,20.0,23.57,23.56,24.59]
[1673903228108,20.0,23.57,23.55,24.59]
[1673903228297,148.1832,23.569,23.55,24.59]
[1673903228511,24.88886,23.568,23.55,24.59]
[1673903228731,31.85,23.567,23.55,24.59]
[1673903229152,20.0,23.566,23.55,24.59]
[1673903229372,31.85,23.565,23.55,24.59]
[1673903230317,20.0,23.564,23.55,24.59]
[1673903230940,20.0,23.564,23.54,24.69]
[1673903231150,48.85,23.563,23.541,20.0]
[1673903231465,20.0,23.562,23.541,20.0]
[1673903231681,31.86,23.561,23.541,20.0]
[1673903231998,31.86,23.561,23.541,41.46196354]
[1673903232185,31.86,23.561,23.542,21.46196354]
[1673903232397,31.86,23.561,23.55,24.59]
[1673903232710,20.0,23.562,23.55,24.59]
[1673903235342,20.0,23.56,23.55,24.59]
[1673903235561,31.86,23.559,23.541,20.0]
[1673903235876,20.0,23.558,23.54,24.69]
[1673903237225,20.0,23.556,23.54,24.69]
[1673903238759,20.0,23.558,23.541,61.46196354]
[1673903238946,20.0,23.558,23.542,17.0]
[1673903239151,20.0,23.558,23.543,20.0]
[1673903239367,20.0,23.558,23.544,17.0]
[1673903239588,20.0,23.558,23.545,20.0]
[1673903239785,20.0,23.558,23.546,17.0]
[1673903240321,51.85,23.568,23.55,24.59]
[1673903240545,20.0,23.568,23.551,37.0]
[1673903240941,20.0,23.568,23.551,17.0]
[1673903241358,51.85,23.567,23.551,17.0]
[1673903241797,20.0,23.567,23.551,17.0]
[1673903241988,20.0,23.567,23.55,24.59]
[1673903242200,51.85,23.566,23.551,17.0]
[1673903244939,51.85,23.566,23.55,24.59]
[1673903245480,51.85,23.566,23.55,16.24]
[1673903246529,51.85,23.566,23.551,17.0]
[1673903247369,31.85,23.566,23.551,17.0]
[1673903247577,20.0,23.568,23.552,20.0]
[1673903247783,20.0,23.568,23.56,16.38]
[1673903247983,31.84,23.573,23.56,16.38]
[1673903248315,51.84,23.575,23.561,17.0]
[1673903252219,31.84,23.573,23.55,16.37]
[1673903252411,24.88886,23.572,23.55,16.37]
[1673903252624,31.84,23.571,23.56,16.37]
[1673903252852,20.0,23.572,23.56,16.37]
[1673903253062,31.84,23.571,23.56,16.37]
[1673903253482,20.0,23.57,23.56,16.37]
[1673903255037,20.0,23.57,23.561,17.0]
[1673903257678,410.82,23.6,23.562,41.46196354]
[1673903257893,225.6531,23.595,23.57,16.37]
[1673903258101,20.0,23.594,23.58,16.37]
[1673903258306,31.81,23.593,23.581,17.0]
[1673903258526,31.81,23.593,23.581,38.46196354]
[1673903258721,31.81,23.593,23.582,21.46196354]
[1673903258933,20.0,23.592,23.582,21.46196354]
[1673903260201,31.82,23.591,23.57,16.37]
[1673903260535,20.0,23.59,23.574,21.46196354]
[1673903260719,20.0,23.59,23.575,37.0]
[1673903261151,20.0,23.59,23.576,21.46196354]
[1673903261354,20.0,23.59,23.577,37.0]
[1673903261791,20.0,23.59,23.578,21.46196354]
[1673903262001,20.0,23.59,23.579,37.0]
[1673903262419,20.0,23.59,23.58,21.46196354]
[1673903262633,20.0,23.59,23.581,17.0]
[1673903262823,20.0,23.59,23.58,21.46196354]
[1673903263034,20.0,23.59,23.581,21.46196354]
[1673903263768,20.0,23.59,23.582,17.0]
[1673903264199,20.0,23.592,23.583,42.92392708]
[1673903264417,20.0,23.592,23.584,17.0]
[1673903264831,20.0,23.592,23.585,21.46196354]
[1673903265042,20.0,23.592,23.586,17.0]
[1673903265356,20.0,23.594,23.585,21.46196354]
[1673903265674,31.81,23.593,23.585,21.46196354]
[1673903265887,20.0,23.594,23.58,16.37]
[1673903266105,20.0,23.594,23.581,21.46196354]
[1673903266296,20.0,23.594,23.581,42.92392708]
[1673903266503,20.0,23.594,23.581,21.46196354]
[1673903266707,20.0,23.594,23.582,17.0]
[1673903267133,20.0,23.594,23.583,21.46196354]
[1673903267557,20.0,23.594,23.58,16.37]
[1673903267766,20.0,23.592,23.58,37.83196354]
[1673903268097,20.0,23.592,23.547,71.96828452]
[1673903268098,31.82,23.591,23.57,16.37]
[1673903268298,31.82,23.591,23.577,21.46196354]
[1673903268714,20.0,23.59,23.577,21.46196354]
[1673903269035,20.0,23.588,23.577,21.46196354]
[1673903269246,31.82,23.587,23.577,21.46196354]
[1673903269459,20.0,23.586,23.577,21.46196354]
[1673903271234,20.0,23.586,23.578,17.0]
[1673903272069,20.0,23.59,23.578,17.0]
[1673903272298,20.0,23.59,23.579,20.0]
[1673903272613,20.0,23.59,23.58,17.0]
[1673903272926,20.0,23.59,23.58,38.46196354]
[1673903274705,20.0,23.59,23.57,92.87858987]
[1673903274706,20.0,23.59,23.57,16.37]
[1673903274925,20.0,23.588,23.575,21.46196354]
[1673903275247,20.0,23.588,23.576,17.0]
[1673903275444,20.0,23.588,23.575,21.46196354]
[1673903276174,20.0,23.588,23.57,16.37]
[1673903276383,20.0,23.588,23.58,16.24]
[1673903277533,20.0,23.588,23.57,16.37]
[1673903277748,31.82,23.587,23.571,17.0]
[1673903278068,20.0,23.586,23.571,38.46196354]
[1673903278287,20.0,23.586,23.572,37.92309331]
[1673903278481,20.0,23.586,23.573,17.0]
[1673903278898,20.0,23.586,23.571,17.0]
[1673903279123,20.0,23.586,23.57,16.37]
[1673903280400,20.0,23.586,23.56,16.31]
[1673903280401,31.82,23.585,23.56,16.31]
[1673903280708,31.82,23.585,23.56,37.77196354]
[1673903280709,20.0,23.584,23.56,37.77196354]
[1673903280916,53.71886,23.583,23.56,37.77196354]
[1673903281127,4.88886,23.582,23.56,16.31]
[1673903281320,48.83,23.581,23.56,16.31]
[1673903281536,4.88886,23.58,23.56,16.31]
[1673903281755,20.0,23.578,23.56,16.31]
[1673903281959,31.83,23.577,23.56,16.31]
[1673903282159,31.83,23.577,23.561,17.0]
[1673903282579,31.83,23.577,23.56,16.31]
[1673903282822,20.0,23.576,23.56,16.31]
[1673903283338,31.83,23.577,23.56,16.31]
[1673903283532,20.0,23.581,23.561,41.46196354]
[1673903283750,20.0,23.581,23.57,16.37]
[1673903284705,31.83,23.58,23.57,16.37]
[1673903284887,31.83,23.58,23.561,20.0]
[1673903285102,20.0,23.579,23.562,17.0]
[1673903285436,20.0,23.579,23.563,20.0]
[1673903285650,20.0,23.579,23.57,16.37]
[1673903289535,20.0,23.579,23.56,16.31]
[1673903290674,20.0,23.579,23.561,17.0]
[1673903291625,20.0,23.579,23.57,16.37]
[1673903291843,31.82,23.585,23.571,17.0]
[1673903292053,31.82,23.587,23.571,17.0]
[1673903292264,51.82,23.588,23.571,17.0]
[1673903294351,51.82,23.588,23.57,16.37]
[1673903294563,20.0,23.582,23.56,16.31]
[1673903294793,31.83,23.581,23.561,20.0]
[1673903294982,20.0,23.58,23.561,20.0]
[1673903295191,31.83,23.579,23.561,20.0]
[1673903295417,20.0,23.578,23.561,20.0]
[1673903297525,20.0,23.578,23.562,20.0]
[1673903297728,20.0,23.578,23.563,20.0]
[1673903297930,20.0,23.578,23.564,17.0]
[1673903298354,20.0,23.578,23.565,20.0]
[1673903298557,20.0,23.578,23.566,17.0]
[1673903298773,20.0,23.578,23.57,16.37]
[1673903298983,20.0,23.578,23.571,17.0]
[1673903300148,31.83,23.583,23.571,17.0]
[1673903300358,51.82,23.588,23.571,17.0]
[1673903300577,20.0,23.588,23.58,16.37]
[1673903300766,20.0,23.588,23.581,17.0]
[1673903301418,20.0,23.592,23.581,17.0]
[1673903301597,20.0,23.592,23.581,38.46196354]
[1673903302665,20.0,23.592,23.581,17.0]
[1673903303175,20.0,23.592,23.581,38.46196354]
[1673903303387,20.0,23.592,23.582,21.46196354]
[1673903303602,20.0,23.592,23.583,17.0]
[1673903305606,20.0,23.592,23.581,17.0]
[1673903305819,20.0,23.593,23.583,21.46196354]
[1673903306010,20.0,23.593,23.584,17.0]
[1673903307290,20.0,23.593,23.582,17.0]
[1673903307482,20.0,23.596,23.584,21.46196354]
[1673903307698,31.8,23.601,23.59,16.37]
[1673903308024,31.8,23.603,23.591,17.0]
[1673903308338,51.8,23.604,23.591,17.0]
[1673903308552,20.0,23.603,23.591,17.0]
[1673903308956,20.0,23.603,23.591,38.46196354]
[1673903309498,31.79,23.611,23.591,38.46196354]
[1673903309715,31.78,23.62,23.6,16.24]
[1673903309906,31.78,23.62,23.601,17.0]
[1673903310114,31.78,23.62,23.601,38.46196354]
[1673903310314,20.0,23.619,23.602,21.46196354]
[1673903310531,31.78,23.618,23.602,21.46196354]
[1673903310740,31.78,23.618,23.603,17.0]
[1673903311492,51.77,23.627,23.61,16.37]
[1673903311707,51.77,23.627,23.611,17.0]
[1673903312012,51.77,23.627,23.61,16.37]
[1673903312208,56.66135,23.627,23.6,54.16309331]
[1673903312420,56.66135,23.627,23.602,21.46196354]
[1673903312644,56.66135,23.627,23.603,37.0]
[1673903313276,56.66135,23.627,23.603,58.46196354]
[1673903313807,56.66135,23.627,23.61,16.37]
[1673903314022,56.66135,23.627,23.611,37.0]
[1673903314227,51.77,23.627,23.611,37.0]
[1673903317894,17.0,23.626,23.6,16.24]
[1673903318109,56.66135,23.625,23.6,16.24]
[1673903318326,20.0,23.623,23.6,16.24]
[1673903318558,48.77,23.622,23.6,16.24]
[1673903318862,20.0,23.621,23.6,16.24]
[1673903319073,31.78,23.62,23.6,16.24]
[1673903319283,20.0,23.619,23.601,17.0]
[1673903319477,20.0,23.617,23.601,17.0]
[1673903319806,20.0,23.615,23.6,16.24]
[1673903320435,48.78,23.614,23.59,16.37]
[1673903320655,168.0598,23.614,23.592,21.46196354]
[1673903320855,20.0,23.613,23.592,21.46196354]
[1673903321048,20.0,23.611,23.592,21.46196354]
[1673903321259,31.79,23.61,23.59,16.37]
[1673903321496,31.79,23.61,23.591,21.46196354]
[1673903321679,20.0,23.609,23.591,21.46196354]
[1673903321891,31.79,23.608,23.591,21.46196354]
[1673903322100,20.0,23.607,23.591,21.46196354]
[1673903322327,20.0,23.605,23.591,21.46196354]
[1673903322551,31.8,23.604,23.591,21.46196354]
[1673903322729,20.0,23.605,23.591,21.46196354]
[1673903323785,20.0,23.605,23.592,17.0]
[1673903324000,20.0,23.607,23.592,17.0]
[1673903324319,20.0,23.607,23.593,41.46196354]
[1673903324534,20.0,23.607,23.594,17.0]
[1673903324751,20.0,23.607,23.595,20.0]
[1673903324941,20.0,23.607,23.596,17.0]
[1673903325278,20.0,23.609,23.6,16.37]
[1673903325501,20.0,23.609,23.601,37.0]
[1673903325887,20.0,23.609,23.601,58.46196354]
[1673903326096,20.0,23.609,23.602,21.46196354]
[1673903326306,20.0,23.609,23.603,17.0]
[1673903326734,20.0,23.609,23.604,21.46196354]
[1673903326960,20.0,23.609,23.605,17.0]
[1673903327589,20.0,23.609,23.606,21.46196354]
[1673903327797,20.0,23.609,23.607,17.0]
[1673903328321,20.0,23.609,23.607,38.46196354]
[1673903329781,20.0,23.62,23.607,38.46196354]
[1673903330118,51.78,23.619,23.607,38.46196354]
[1673903330829,51.78,23.619,23.607,21.46196354]
[1673903333353,20.0,23.615,23.601,20.0]
[1673903333993,31.78,23.614,23.601,20.0]
[1673903334319,20.0,23.613,23.601,20.0]
[1673903335048,20.0,23.613,23.602,17.0]
[1673903335887,20.0,23.613,23.601,20.0]
[1673903336846,20.0,23.613,23.597,20.0]
[1673903337163,20.0,23.613,23.598,17.0]
[1673903337375,20.0,23.613,23.599,20.0]
[1673903338090,20.0,23.611,23.599,20.0]
[1673903338738,20.0,23.611,23.6,21.46196354]
[1673903339144,31.79,23.61,23.6,21.46196354]
[1673903339350,20.0,23.609,23.59,16.37]
[1673903339565,20.0,23.609,23.591,21.46196354]
[1673903339883,20.0,23.607,23.592,17.0]
[1673903340304,20.0,23.607,23.593,21.46196354]
[1673903340519,31.8,23.606,23.593,21.46196354]
[1673903340721,20.0,23.605,23.593,21.46196354]
[1673903341363,20.0,23.605,23.59,16.37]
[1673903341566,20.0,23.605,23.591,21.46196354]
[1673903342525,20.0,23.605,23.592,17.0]
[1673903343036,20.0,23.605,23.591,17.0]
[1673903346076,20.0,23.605,23.592,21.46196354]
[1673903346285,20.0,23.609,23.593,37.0]
[1673903346501,20.0,23.609,23.6,16.37]
[1673903346711,20.0,23.609,23.601,37.0]
[1673903350838,31.78,23.618,23.601,58.46196354]
[1673903351035,20.0,23.618,23.601,58.46196354]
[1673903351254,20.0,23.618,23.602,21.46196354]
[1673903351576,31.77,23.622,23.603,37.0]
[1673903351769,130.218,23.623,23.603,17.0]
[1673903351985,51.77,23.622,23.603,17.0]
[1673903352189,31.78,23.62,23.604,21.46196354]
[1673903352405,20.0,23.619,23.605,17.0]
[1673903352933,20.0,23.619,23.61,16.37]
[1673903353151,20.0,23.619,23.611,17.0]
[1673903353469,20.0,23.619,23.611,37.0]
[1673903353686,20.0,23.619,23.611,20.0]
[1673903353986,20.0,23.619,23.61,37.83196354]
[1673903354203,20.0,23.619,23.6,16.48]
[1673903354523,20.0,23.619,23.606,21.46196354]
[1673903355132,20.0,23.619,23.6,16.48]
[1673903355466,20.0,23.619,23.601,21.46196354]
[1673903355676,31.78,23.618,23.601,21.46196354]
[1673903355882,20.0,23.617,23.601,21.46196354]
[1673903356083,20.0,23.615,23.601,21.46196354]
[1673903356711,20.0,23.615,23.602,17.0]
[1673903357039,20.0,23.615,23.603,21.46196354]
[1673903357258,20.0,23.615,23.604,17.0]
[1673903357654,20.0,23.615,23.605,21.46196354]
[1673903357979,20.0,23.615,23.604,17.0]
[1673903359662,20.0,23.615,23.604,38.46196354]
[1673903361348,20.0,23.615,23.604,17.0]
[1673903361763,20.0,23.615,23.603,17.0]
[1673903361983,20.0,23.615,23.6,16.48]
[1673903362191,20.0,23.615,23.601,20.0]
[1673903362192,31.78,23.614,23.601,20.0]
[1673903362719,20.0,23.613,23.595,20.0]
[1673903362930,20.0,23.611,23.595,20.0]
[1673903363241,20.0,23.611,23.591,20.0]
[1673903363851,20.0,23.611,23.59,16.37]
[1673903363852,20.0,23.609,23.59,16.37]
[1673903364065,20.0,23.607,23.584,119.1968]
[1673903364275,31.8,23.606,23.588,21.46196354]
[1673903364500,31.8,23.606,23.589,20.0]
[1673903364717,31.8,23.606,23.59,16.37]
[1673903364905,31.8,23.606,23.59,37.83196354]
[1673903365113,31.8,23.606,23.591,38.46196354]
[1673903365535,31.8,23.606,23.592,21.46196354]
[1673903365858,37.0,23.605,23.58,16.35]
[1673903366177,37.0,23.605,23.583,21.46196354]
[1673903366178,56.69135,23.604,23.583,21.46196354]
[1673903366396,20.0,23.602,23.574,110.5835]
[1673903366600,53.69135,23.601,23.575,21.46196354]
[1673903366818,20.0,23.599,23.575,21.46196354]
[1673903367012,53.70135,23.598,23.575,21.46196354]
[1673903367223,20.0,23.596,23.576,20.0]
[1673903367431,53.70135,23.595,23.576,20.0]
[1673903367639,20.0,23.593,23.576,20.0]
[1673903367854,31.81,23.592,23.576,20.0]
[1673903368175,20.0,23.591,23.576,20.0]
[1673903368370,31.82,23.59,23.576,20.0]
[1673903369005,31.82,23.59,23.576,41.46196354]
[1673903369957,31.82,23.59,23.577,17.0]
[1673903370161,31.82,23.59,23.578,20.0]
[1673903370384,31.82,23.59,23.579,17.0]
[1673903370791,31.82,23.59,23.58,20.0]
[1673903372166,20.0,23.591,23.58,20.0]
[1673903373353,20.0,23.591,23.577,20.0]
[1673903373671,20.0,23.591,23.578,17.0]
[1673903373878,20.0,23.591,23.579,20.0]
[1673903374069,20.0,23.591,23.58,17.0]
[1673903374402,20.0,23.591,23.581,20.0]
[1673903377135,20.0,23.591,23.576,21.46196354]
[1673903377327,20.0,23.591,23.577,20.0]
[1673903377666,20.0,23.591,23.578,21.46196354]
[1673903377857,20.0,23.591,23.579,20.0]
[1673903378379,20.0,23.591,23.58,17.0]
[1673903378594,20.0,23.591,23.581,20.0]
[1673903378808,20.0,23.591,23.582,17.0]
[1673903379965,20.0,23.593,23.582,17.0]
[1673903380179,31.81,23.598,23.583,21.46196354]
[1673903380398,31.8,23.603,23.584,17.0]
[1673903380579,51.8,23.603,23.585,20.0]
[1673903380906,51.8,23.603,23.586,37.0]
[1673903381097,20.0,23.603,23.586,58.46196354]
[1673903381309,20.0,23.603,23.587,21.46196354]
[1673903381521,51.8,23.602,23.587,21.46196354]
[1673903383745,20.0,23.602,23.58,16.37]
[1673903383965,20.0,23.602,23.581,20.0]
[1673903383966,20.0,23.597,23.581,20.0]
[1673903384165,31.81,23.596,23.581,20.0]
[1673903384405,36.70135,23.596,23.581,20.0]
[1673903384621,20.0,23.595,23.574,20.0]
[1673903384934,133.1433,23.595,23.582,21.46196354]
[1673903385665,133.1433,23.595,23.583,17.0]
[1673903385984,133.1433,23.595,23.584,21.46196354]
[1673903386176,133.1433,23.595,23.585,17.0]
[1673903386596,133.1433,23.595,23.586,21.46196354]
[1673903391555,133.1433,23.595,23.58,16.34]
[1673903391777,20.0,23.593,23.581,20.0]
[1673903392170,20.0,23.591,23.577,21.46196354]
[1673903392385,20.0,23.591,23.578,20.0]
[1673903393027,20.0,23.591,23.578,41.46196354]
[1673903393857,20.0,23.591,23.579,17.0]
[1673903394056,20.0,23.591,23.58,20.0]
[1673903394268,20.0,23.591,23.581,17.0]
[1673903394478,20.0,23.591,23.581,38.46196354]
[1673903394713,20.0,23.591,23.582,21.46196354]
[1673903396177,20.0,23.591,23.58,20.0]
[1673903396391,20.0,23.591,23.578,21.46196354]
[1673903396581,20.0,23.591,23.579,20.0]
[1673903396805,20.0,23.591,23.581,21.46196354]
[1673903400280,114.9013,23.594,23.58,16.24]
[1673903400489,114.9013,23.594,23.582,17.0]
[1673903400894,114.9013,23.594,23.581,38.46196354]
[1673903401100,114.9013,23.594,23.583,21.46196354]
[1673903401315,20.0,23.593,23.584,17.0]
[1673903401731,20.0,23.593,23.585,21.46196354]
[1673903402366,20.0,23.593,23.58,16.24]
[1673903402582,20.0,23.593,23.581,58.46196354]
[1673903403005,20.0,23.593,23.582,21.46196354]
[1673903403215,20.0,23.593,23.583,17.0]
[1673903403643,20.0,23.593,23.584,21.46196354]
[1673903406164,20.0,23.593,23.585,17.0]
[1673903407313,20.0,23.593,23.584,21.46196354]
[1673903407528,31.81,23.592,23.57,36.35]
[1673903407737,20.0,23.591,23.576,21.46196354]
[1673903407954,31.82,23.59,23.576,21.46196354]
[1673903408164,20.0,23.589,23.576,21.46196354]
[1673903408354,20.0,23.589,23.57,36.35]
[1673903408564,31.82,23.588,23.572,21.46196354]
[1673903409292,31.82,23.588,23.57,36.35]
[1673903409506,20.0,23.591,23.571,37.0]
[1673903409721,20.0,23.593,23.58,16.21]
[1673903409936,20.0,23.593,23.581,37.0]
[1673903410356,20.0,23.593,23.582,21.46196354]
[1673903410572,20.0,23.593,23.583,17.0]
[1673903411618,20.0,23.593,23.583,38.46196354]
[1673903411831,20.0,23.593,23.583,17.0]
[1673903412039,20.0,23.593,23.582,17.0]
[1673903412245,20.0,23.594,23.582,17.0]
[1673903412472,20.0,23.594,23.584,21.46196354]
[1673903412680,20.0,23.594,23.585,17.0]
[1673903412874,51.8,23.599,23.585,17.0]
[1673903413090,51.8,23.599,23.586,21.46196354]
[1673903413291,51.8,23.599,23.587,17.0]
[1673903414255,20.0,23.599,23.588,20.0]
[1673903414468,20.0,23.599,23.589,17.0]
[1673903414677,20.0,23.599,23.59,20.0]
[1673903414884,20.0,23.599,23.591,17.0]
[1673903420021,20.0,23.599,23.59,20.0]
[1673903420232,20.0,23.599,23.58,16.21]
[1673903420436,31.81,23.596,23.583,21.46196354]
[1673903420652,20.0,23.595,23.583,21.46196354]
[1673903420861,31.81,23.594,23.583,21.46196354]
[1673903421177,20.0,23.595,23.58,16.21]
[1673903421385,31.81,23.594,23.57,36.21]
[1673903421593,20.0,23.593,23.57,36.21]
[1673903421811,31.81,23.592,23.572,21.46196354]
[1673903422024,20.0,23.591,23.572,21.46196354]
[1673903422456,20.0,23.591,23.57,36.21]
[1673903422664,20.0,23.591,23.58,16.21]
[1673903422878,17.5,23.591,23.581,17.0]
[1673903423516,15.0,23.591,23.581,17.0]
[1673903424772,15.0,23.591,23.58,16.21]
[1673903425091,15.0,23.591,23.581,20.0]
[1673903425497,15.0,23.591,23.57,16.35]
[1673903425712,31.82,23.59,23.57,16.35]
[1673903425921,20.0,23.589,23.57,16.35]
[1673903426122,31.82,23.588,23.571,21.46196354]
[1673903426332,51.81,23.593,23.571,21.46196354]
[1673903426559,20.0,23.593,23.58,16.35]
[1673903426765,20.0,23.593,23.581,17.0]
[1673903426991,20.0,23.593,23.581,38.46196354]
[1673903427300,20.0,23.593,23.582,21.46196354]
[1673903427505,20.0,23.593,23.583,17.0]
[1673903427917,20.0,23.593,23.584,21.46196354]
[1673903428131,20.0,23.593,23.585,17.0]
[1673903428749,20.0,23.593,23.585,38.46196354]
[1673903429403,20.0,23.594,23.585,38.46196354]
[1673903429719,20.0,23.595,23.585,38.46196354]
[1673903434132,51.8,23.599,23.585,38.46196354]
[1673903434357,163.038,23.601,23.586,21.46196354]
[1673903434537,131.238,23.601,23.587,37.0]
[1673903434955,20.0,23.601,23.59,16.35]
[1673903435274,20.0,23.601,23.591,38.46196354]
[1673903435693,20.0,23.601,23.592,21.46196354]
[1673903435918,20.0,23.602,23.593,17.0]
[1673903436129,20.0,23.604,23.593,17.0]
[1673903436350,20.0,23.604,23.594,21.46196354]
[1673903436531,20.0,23.604,23.595,17.0]
[1673903436952,20.0,23.604,23.596,21.46196354]
[1673903437179,20.0,23.604,23.597,17.0]
[1673903438546,20.0,23.604,23.597,38.46196354]
[1673903440420,20.0,23.604,23.597,21.46196354]
[1673903440631,20.0,23.604,23.59,16.35]
[1673903440962,51.8,23.604,23.591,21.46196354]
[1673903441272,20.0,23.604,23.591,21.46196354]
[1673903441892,20.0,23.604,23.592,17.0]
[1673903442330,20.0,23.604,23.593,21.46196354]
[1673903442541,20.0,23.604,23.594,17.0]
[1673903442745,29.88820593,23.603,23.594,17.0]
[1673903444000,29.88820593,23.603,23.594,38.46196354]
[1673903446451,29.88820593,23.603,23.595,21.46196354]
[1673903446648,29.88820593,23.603,23.596,17.0]
[1673903447075,29.88820593,23.603,23.596,38.46196354]
[1673903448335,29.88820593,23.603,23.596,21.46196354]
[1673903450445,29.88820593,23.603,23.58,16.35]
[1673903450446,31.8,23.602,23.58,16.35]
[1673903450631,20.0,23.601,23.58,16.35]
[1673903450842,20.0,23.599,23.58,16.35]
[1673903451285,31.81,23.598,23.58,16.35]
[1673903451471,20.0,23.597,23.58,16.35]
[1673903452115,20.0,23.595,23.58,16.35]
[1673903452328,20.0,23.595,23.581,17.0]
[1673903452967,139.0894,23.595,23.581,17.0]
[1673903455698,139.0894,23.595,23.582,20.0]
[1673903455914,139.0894,23.595,23.583,17.0]
[1673903456525,139.0894,23.595,23.581,17.0]
[1673903456956,20.0,23.593,23.581,17.0]
[1673903460217,139.0894,23.595,23.582,21.46196354]
[1673903460410,20.0,23.595,23.583,17.0]
[1673903460936,20.0,23.595,23.583,82.91040588]
[1673903463039,20.0,23.597,23.583,82.91040588]
[1673903463259,51.8,23.604,23.59,16.21]
[1673903463452,20.0,23.604,23.591,17.0]
[1673903463658,20.0,23.604,23.591,38.46196354]
[1673903463873,20.0,23.604,23.592,21.46196354]
[1673903464100,20.0,23.604,23.593,17.0]
[1673903464415,20.0,23.604,23.594,21.46196354]
[1673903464729,20.0,23.604,23.595,17.0]
[1673903466537,20.0,23.603,23.595,17.0]
[1673903466714,20.0,23.603,23.595,38.46196354]
[1673903466924,20.0,23.603,23.59,16.21]
[1673903467133,20.0,23.603,23.59,21.46196354]
[1673903468288,20.0,23.603,23.591,17.0]
[1673903470402,31.8,23.601,23.584,20.0]
[1673903470624,20.0,23.6,23.585,17.0]
[1673903470823,20.0,23.6,23.586,20.0]
[1673903471025,20.0,23.6,23.587,17.0]
[1673903471237,20.0,23.6,23.588,20.0]
[1673903471447,20.0,23.6,23.589,17.0]
[1673903471879,20.0,23.6,23.59,17.0]
[1673903472098,20.0,23.6,23.589,17.0]
[1673903473859,20.0,23.6,23.59,16.21]
[1673903474069,20.0,23.6,23.591,17.0]
[1673903475346,20.0,23.6,23.59,16.21]
[1673903477036,20.0,23.6,23.591,17.0]
[1673903480605,20.0,23.6,23.589,17.0]
[1673903481537,20.0,23.6,23.588,20.0]
[1673903481765,20.0,23.598,23.58,16.35]
[1673903481978,31.81,23.597,23.581,17.0]
[1673903482379,20.0,23.596,23.581,17.0]
[1673903482593,20.0,23.594,23.581,17.0]
[1673903487117,20.0,23.592,23.581,17.0]